bitfinex-derivatives/quotes_ETHF0:USTF0_20260223
["timestamp","ask_amount","ask_price","bid_price","bid_amount"]
[1771825092504,0.97726142,1865.6,1864.9,0.93248523]
[1771825095006,0.97726142,1865.7,1864.9,0.93248523]
[1771825095714,0.00471451,1865.9,1865.2,0.93248523]
[1771825097508,0.97726142,1866.1,1865.2,0.93248523]
[1771825097711,0.98170935,1866.3,1865.2,0.93248523]
[1771825097906,0.98170935,1866.1,1865.2,0.93248523]
[1771825098610,0.98674486,1866.1,1865.2,0.93248523]
[1771825099908,0.00503551,1866.1,1865.2,0.93248523]
[1771825100109,0.98170935,1866.4,1865.5,0.95858288]
[1771825100614,0.98170935,1866.2,1865.5,0.95858288]
[1771825101007,0.9882559,1866.2,1865.5,0.95858288]
[1771825105212,0.9882559,1866.2,1865.6,2.79650698]
[1771825107315,0.9882559,1866.2,1865.6,0.95858288]
[1771825117431,0.98170935,1866.4,1865.9,0.95858288]
[1771825118526,0.98726012,1866.4,1865.9,0.95858288]
[1771825119325,0.98726012,1866.4,1865.5,0.95858288]
[1771825123230,0.69082186,1866.3,1865.5,0.95858288]
[1771825123426,0.98726012,1866.4,1865.5,0.95858288]
[1771825123627,0.98170935,1866.2,1865.5,0.95858288]
[1771825125329,0.69220641,1866.1,1865.5,0.95858288]
[1771825125529,0.98170935,1866.0,1865.5,0.95858288]
[1771825131838,0.99603562,1866.1,1865.5,0.95858288]
[1771825141441,0.99603562,1866.2,1865.5,0.95858288]
[1771825146043,0.00555077,1866.4,1865.5,0.95858288]
[1771825146246,1.00158639,1866.4,1865.8,0.99440354]
[1771825155547,0.99603562,1866.7,1866.1,0.99440354]
[1771825156453,1.00109274,1866.7,1866.1,1.00065423]
[1771825158558,0.00505712,1866.7,1866.1,1.00065423]
[1771825164362,0.91017298,1866.8,1866.1,1.00065423]
[1771825164858,0.91017298,1866.9,1866.4,0.91101777]
[1771825165457,0.91469301,1866.9,1866.4,0.91101777]
[1771825167365,0.91469301,1866.9,1866.6,0.91101777]
[1771825170964,0.91469301,1866.9,1866.5,2.747219]
[1771825171367,0.91469301,1866.9,1866.6,0.91101777]
[1771825172269,0.78819109,1867.0,1866.6,0.91101777]
[1771825173169,0.79306264,1867.0,1866.6,0.91101777]
[1771825173668,0.7933419,1867.0,1866.6,0.91101777]
[1771825175565,0.00487155,1867.0,1866.6,0.91101777]
[1771825175865,0.78011212,1867.0,1866.6,0.91101777]
[1771825177872,0.78011212,1867.0,1866.4,0.91101777]
[1771825178265,0.78011212,1867.0,1866.4,2.747219]
[1771825178466,0.78011212,1867.0,1866.5,0.91101777]
[1771825189278,0.76776722,1866.5,1866.0,0.90278964]
[1771825190281,0.76776722,1866.5,1866.0,0.90916444]
[1771825192078,0.76776722,1866.5,1865.8,0.90278964]
[1771825193077,0.76776722,1866.5,1865.8,0.90880947]
[1771825193282,0.76854609,1866.3,1865.8,0.90880947]
[1771825202102,0.75908995,1866.1,1865.5,0.90278964]
[1771825203300,0.75908995,1866.1,1865.5,0.90852597]
[1771825217315,0.77070589,1866.3,1865.5,0.90852597]
[1771825219215,1.46055072,1866.2,1865.5,0.90852597]
[1771825219419,0.76924382,1866.2,1865.5,0.90852597]
[1771825228124,0.69210882,1866.1,1865.5,0.90852597]
[1771825228321,0.76924382,1866.2,1865.5,0.90852597]
[1771825228625,0.76543361,1866.5,1865.6,0.9396651]
[1771825228815,0.69214038,1866.4,1865.6,0.9396651]
[1771825229018,0.69214038,1866.3,1865.6,0.9396651]
[1771825229319,0.76003753,1866.4,1865.6,0.9396651]
[1771825229524,0.69221035,1866.3,1865.6,0.9396651]
[1771825229721,0.76003753,1866.4,1865.6,0.9396651]
[1771825230022,0.69221218,1866.3,1865.6,0.9396651]
[1771825230324,0.76003753,1866.4,1865.6,0.9396651]
[1771825231121,0.69217431,1866.3,1865.6,0.9396651]
[1771825231318,0.76003753,1866.4,1865.6,0.9396651]
[1771825232023,1.44485564,1866.3,1865.6,0.9396651]
[1771825232223,0.75268119,1866.3,1865.6,0.9396651]
[1771825233321,10.95467855,1866.8,1865.6,0.9396651]
[1771825233527,0.76556185,1866.6,1865.6,0.9396651]
[1771825233721,0.76556185,1866.4,1865.6,0.9396651]
[1771825244429,0.76488531,1866.7,1865.8,0.9396651]
[1771825244636,0.76488531,1866.5,1865.8,0.9396651]
[1771825259850,0.76488531,1866.5,1865.7,0.93351308]
[1771825260050,0.74095831,1866.3,1865.7,0.93351308]
[1771825260454,0.74090112,1866.8,1866.0,0.93351308]
[1771825260654,0.74090112,1866.6,1866.0,0.93351308]
[1771825261855,0.74379889,1866.9,1866.0,0.93351308]
[1771825262060,1.43574946,1866.8,1866.0,0.93351308]
[1771825262254,0.00487155,1867.0,1866.3,0.93351308]
[1771825262555,0.98505567,1867.3,1866.6,0.93351308]
[1771825262754,0.98505567,1867.1,1866.1,0.93351308]
[1771825263357,0.98988445,1867.1,1866.1,0.93351308]
[1771825270869,0.98988445,1867.1,1866.4,0.93351308]
[1771825273569,4.47951032,1868.5,1867.7,0.26778]
[1771825273872,0.51422075,1868.8,1868.0,0.93351308]
[1771825274070,0.42122075,1868.5,1868.0,7.018]
[1771825274466,4.13334165,1868.3,1868.0,7.02241312]
[1771825274666,3.71249398,1868.3,1868.1,0.93351308]
[1771825274966,3.71249398,1868.2,1868.1,0.93351308]
[1771825275164,0.42431135,1868.5,1868.1,0.93351308]
[1771825275673,0.41877747,1868.2,1867.8,0.93351308]
[1771825276073,4.13127145,1868.2,1867.8,0.93351308]
[1771825276668,4.13127145,1868.2,1867.8,0.93800187]
[1771825282275,4.13127145,1868.2,1867.9,8.00328862]
[1771825282475,3.71249398,1868.1,1867.9,8.00328862]
[1771825285473,0.41877747,1868.2,1867.9,8.00328862]
[1771825285873,0.12942743,1868.4,1867.9,8.00328862]
[1771825286074,3.84192141,1868.3,1868.0,0.98828862]
[1771825286372,3.71249398,1868.3,1868.0,0.98828862]
[1771825286572,0.09148262,1868.7,1868.1,0.98828862]
[1771825286770,0.09148262,1868.7,1868.3,0.98828862]
[1771825287374,3.32586796,1868.5,1868.3,0.98828862]
[1771825287570,0.0582412,1868.4,1868.2,7.014]
[1771825287764,3.38410916,1868.4,1868.2,7.014]
[1771825288172,3.32586796,1868.4,1868.2,7.014]
[1771825288664,3.32586796,1868.4,1868.2,8.00228862]
[1771825289274,3.32586796,1868.4,1868.3,7.014]
[1771825290578,0.00411691,1868.5,1868.2,3.33895981]
[1771825292381,0.00411691,1868.5,1868.0,0.98828862]
[1771825292681,1.83744169,1868.5,1868.1,7.013]
[1771825293381,1.83744169,1868.5,1868.0,0.98828862]
[1771825293678,0.00411691,1868.5,1868.0,0.98828862]
[1771825293879,0.00411691,1868.5,1868.0,8.00128862]
[1771825294280,0.00411691,1868.5,1868.1,0.98828862]
[1771825297383,0.00411691,1868.5,1868.1,8.00128862]
[1771825297977,0.00411691,1868.5,1868.2,0.98828862]
[1771825298882,0.00411691,1868.5,1868.1,8.00128862]
[1771825299077,0.00411691,1868.5,1868.2,0.98828862]
[1771825303485,0.68671713,1868.4,1868.2,0.98828862]
[1771825303788,0.68671713,1868.3,1868.2,0.98828862]
[1771825305389,0.68671713,1868.3,1868.2,0.09027925]
[1771825305992,0.55967852,1868.5,1868.2,0.09027925]
[1771825306187,0.68671998,1868.4,1868.2,0.09027925]
[1771825306388,0.68671998,1868.3,1868.2,0.09027925]
[1771825307891,0.00411691,1868.5,1868.2,0.09027925]
[1771825308791,0.56852716,1868.5,1868.2,0.09027925]
[1771825310893,0.00411691,1868.5,1868.2,0.09027925]
[1771825312293,0.00411691,1868.5,1868.3,7.57611337]
[1771825312493,0.56441025,1868.4,1867.9,0.56411337]
[1771825313294,0.56441025,1868.0,1867.0,0.56411337]
[1771825313489,0.56441025,1867.8,1867.0,0.56411337]
[1771825314396,2.39773503,1867.9,1867.2,0.56411337]
[1771825316695,0.56441025,1867.8,1867.2,0.56411337]
[1771825319388,0.56441025,1867.6,1867.1,0.56411337]
[1771825327302,1.83332478,1867.7,1866.4,0.56411337]
[1771825327303,0.56441025,1867.2,1866.4,0.56411337]
[1771825327803,0.56441025,1867.0,1866.4,0.56411337]
[1771825328002,0.56441025,1866.8,1866.4,0.56411337]
[1771825328301,0.56441025,1866.8,1866.2,0.56411337]
[1771825328502,0.56441025,1866.8,1866.2,0.56957126]
[1771825328503,0.56441025,1866.7,1866.2,0.56957126]
[1771825329104,0.56441025,1866.5,1866.2,0.00545789]
[1771825331405,0.56441025,1866.7,1866.2,0.56957126]
[1771825331603,0.0060855,1866.8,1866.5,0.56411337]
[1771825331805,0.57049575,1866.8,1866.5,0.56411337]
[1771825336404,0.0060855,1866.8,1866.5,0.56411337]
[1771825336911,0.57049575,1866.8,1866.5,0.56411337]
[1771825337110,0.57049575,1866.8,1866.3,0.56281017]
[1771825346712,0.57049575,1866.8,1866.5,0.5835321]
[1771825346713,0.0060855,1866.8,1866.5,0.5835321]
[1771825346915,0.59454906,1866.8,1866.5,0.5835321]
[1771825348419,0.0060855,1866.8,1866.5,0.5835321]
[1771825351922,0.59454906,1866.8,1866.5,0.5835321]
[1771825355522,0.0060855,1866.8,1866.5,0.5835321]
[1771825357225,0.6811202,1866.7,1866.5,0.5835321]
[1771825357426,0.59454906,1866.8,1866.5,0.5835321]
[1771825358121,0.68115009,1866.7,1866.5,0.5835321]
[1771825358326,0.59454906,1866.8,1866.5,0.5835321]
[1771825358726,0.68115009,1866.7,1866.5,0.5835321]
[1771825358925,0.59454906,1866.8,1866.5,0.5835321]
[1771825359126,0.68114037,1866.7,1866.5,0.5835321]
[1771825359324,0.59454906,1866.8,1866.3,0.5835321]
[1771825359535,0.68125865,1866.7,1866.3,0.5835321]
[1771825359824,0.59454906,1866.8,1866.3,0.5835321]
[1771825360024,0.68125864,1866.7,1866.3,0.5835321]
[1771825360326,0.59454906,1866.8,1866.3,0.5835321]
[1771825360624,0.68142143,1866.7,1866.3,0.5835321]
[1771825360822,0.59454906,1866.8,1866.3,0.5835321]
[1771825361021,0.68142142,1866.7,1866.3,0.5835321]
[1771825361226,0.0060855,1866.8,1866.3,0.5835321]
[1771825361426,0.68165537,1866.7,1866.3,0.5835321]
[1771825361626,0.0060855,1866.8,1866.3,0.5835321]
[1771825361820,0.68165976,1866.7,1866.3,0.5835321]
[1771825362023,0.0060855,1866.8,1866.3,0.5835321]
[1771825362321,0.68165844,1866.7,1866.3,0.5835321]
[1771825362517,0.0060855,1866.8,1866.3,0.5835321]
[1771825362721,0.68166156,1866.7,1866.3,0.5835321]
[1771825362918,0.0060855,1866.8,1866.3,0.5835321]
[1771825363122,0.68166156,1866.7,1866.3,0.5835321]
[1771825363327,0.0060855,1866.8,1866.3,0.5835321]
[1771825363528,1.2701306,1866.7,1866.3,0.5835321]
[1771825363730,0.58846356,1866.7,1866.3,0.5835321]
[1771825363935,0.59454906,1866.8,1866.3,0.5835321]
[1771825364126,0.68166702,1866.7,1866.3,0.5835321]
[1771825364420,0.59454906,1866.8,1866.3,0.5835321]
[1771825364725,0.68167154,1866.7,1866.3,0.5835321]
[1771825364924,0.59454906,1866.8,1866.3,0.5835321]
[1771825365125,0.68167154,1866.7,1866.3,0.5835321]
[1771825365328,0.59454906,1866.8,1866.3,0.5835321]
[1771825365629,0.68167977,1866.7,1866.3,0.5835321]
[1771825365831,0.59454906,1866.8,1866.3,0.5835321]
[1771825366029,0.68167977,1866.7,1866.3,0.5835321]
[1771825366228,0.59454906,1866.8,1866.3,0.5835321]
[1771825366528,0.6816893,1866.7,1866.3,0.5835321]
[1771825366728,0.59454906,1866.8,1866.3,0.5835321]
[1771825366931,0.6816893,1866.7,1866.3,0.5835321]
[1771825367228,0.59454906,1866.8,1866.3,0.5835321]
[1771825367429,0.68171305,1866.7,1866.3,0.5835321]
[1771825367628,0.59454906,1866.8,1866.3,0.5835321]
[1771825367832,0.68171299,1866.7,1866.3,0.5835321]
[1771825368028,0.59454906,1866.8,1866.3,0.5835321]
[1771825368228,0.68171299,1866.7,1866.3,0.5835321]
[1771825368424,0.59454906,1866.8,1866.3,0.5835321]
[1771825368630,0.68174036,1866.7,1866.3,0.5835321]
[1771825368830,0.59454906,1866.8,1866.3,0.5835321]
[1771825369032,0.68174036,1866.7,1866.3,0.5835321]
[1771825369232,0.59454906,1866.8,1866.3,0.5835321]
[1771825369428,0.68175016,1866.7,1866.3,0.5835321]
[1771825369633,0.59141527,1866.8,1866.3,0.5835321]
[1771825369833,0.6817408,1866.7,1866.3,0.5835321]
[1771825370027,0.59141527,1866.8,1866.3,0.5835321]
[1771825370225,0.68174083,1866.7,1866.3,0.5835321]
[1771825370434,0.59141527,1866.8,1866.3,0.5835321]
[1771825370634,1.26709974,1866.7,1866.3,0.5835321]
[1771825370836,0.58532977,1866.7,1866.3,0.5835321]
[1771825371035,0.59141527,1866.8,1866.3,0.5835321]
[1771825371236,0.68176997,1866.7,1866.3,0.5835321]
[1771825371437,0.59141527,1866.8,1866.3,0.5835321]
[1771825374941,1.26724718,1866.7,1866.3,0.5835321]
[1771825375240,0.58532977,1866.7,1866.3,0.5835321]
[1771825377040,0.59141527,1866.8,1866.3,0.5835321]
[1771825377244,0.6820939,1866.7,1866.3,0.5835321]
[1771825377439,0.59141527,1866.8,1866.3,0.5835321]
[1771825377639,1.26741866,1866.7,1866.3,0.5835321]
[1771825377837,0.58532977,1866.7,1866.3,0.5835321]
[1771825379843,0.58532977,1866.7,1866.2,0.59146361]
[1771825390853,0.59141527,1866.8,1866.2,0.59146361]
[1771825391053,0.0060855,1866.8,1866.2,0.59146361]
[1771825395256,0.0060855,1866.8,1866.2,2.42793691]
[1771825395451,0.0060855,1866.8,1866.3,0.58600572]
[1771825400566,0.60389431,1866.8,1866.3,0.58600572]
[1771825407767,0.0060855,1866.8,1866.3,0.58600572]
[1771825411374,6.467,1867.1,1866.4,0.59452653]
[1771825411673,0.68157729,1867.0,1866.4,0.59452653]
[1771825411974,0.68157729,1866.9,1866.4,0.59452653]
[1771825412173,7.06480881,1867.1,1866.4,0.59452653]
[1771825412369,0.68157764,1867.0,1866.4,0.59452653]
[1771825412570,0.68157764,1866.9,1866.4,0.59452653]
[1771825412872,7.07044221,1867.1,1866.4,0.59452653]
[1771825413074,0.68157727,1867.0,1866.4,0.59452653]
[1771825413269,0.68157727,1866.9,1866.4,0.59452653]
[1771825413465,7.07044221,1867.1,1866.4,0.59452653]
[1771825413673,0.68156979,1867.0,1866.4,0.59452653]
[1771825413971,0.68156979,1866.9,1866.4,0.59452653]
[1771825414169,7.07044221,1867.1,1866.4,0.59452653]
[1771825414369,0.68156979,1867.0,1866.4,0.59452653]
[1771825414666,0.68156979,1866.9,1866.4,0.59452653]
[1771825414872,7.07044221,1867.1,1866.4,0.59452653]
[1771825415174,1.2793791,1867.0,1866.4,0.59452653]
[1771825415373,0.68157029,1866.9,1866.4,0.59452653]
[1771825415670,0.59780881,1867.0,1866.4,0.59452653]
[1771825415864,0.68157901,1866.9,1866.4,0.59452653]
[1771825416071,0.59780881,1867.0,1866.4,0.59452653]
[1771825416269,0.68157901,1866.9,1866.4,0.59452653]
[1771825416471,0.59780881,1867.0,1866.4,0.59452653]
[1771825416670,1.27940618,1866.9,1866.4,0.59452653]
[1771825416870,0.59780881,1866.9,1866.4,0.59452653]
[1771825422474,0.59780881,1866.7,1866.4,0.59452653]
[1771825428378,0.59780881,1866.7,1866.2,0.00545789]
[1771825428379,0.59780881,1866.7,1866.2,0.60147349]
[1771825442580,0.59780881,1866.7,1866.2,0.00545789]
[1771825443382,0.58036087,1866.5,1866.2,0.00545789]
[1771825444081,2.41682045,1866.5,1866.2,0.00545789]
[1771825444281,0.58036087,1866.4,1866.2,0.00545789]
[1771825444477,2.41682045,1866.3,1866.0,0.5960156]
[1771825444684,0.58036087,1866.3,1866.0,0.5960156]
[1771825445481,0.58036087,1866.3,1866.0,0.60138773]
[1771825447285,0.58036087,1866.3,1866.0,0.00537213]
[1771825448586,0.58036087,1866.2,1865.5,0.5960156]
[1771825449484,0.58036087,1866.2,1865.5,0.60277263]
[1771825451884,0.58036087,1866.2,1865.7,0.5960156]
[1771825452687,0.58036087,1866.2,1865.5,0.60277263]
[1771825459794,0.58036087,1866.2,1865.7,0.56310521]
[1771825462599,0.58036087,1866.2,1865.5,0.56986224]
[1771825464200,0.58036087,1866.2,1865.7,0.56310521]
[1771825477710,0.58036087,1866.2,1865.5,0.56986224]
[1771825478911,0.55021632,1866.0,1865.5,0.56986224]
[1771825479914,0.55021632,1866.4,1865.5,0.56986224]
[1771825480113,0.55021632,1866.2,1865.5,0.56986224]
[1771825480313,1.23212717,1866.1,1865.5,0.56986224]
[1771825480515,0.55021632,1866.1,1865.5,0.56986224]
[1771825482413,0.55021632,1866.1,1865.5,0.00675703]
[1771825482715,0.55021632,1865.9,1865.5,0.00675703]
[1771825483115,0.55021632,1865.9,1865.5,0.56986224]
[1771825484612,0.55021632,1865.7,1865.1,0.56310521]
[1771825485016,0.55021632,1865.5,1865.0,7.018]
[1771825485216,0.55021632,1865.5,1865.0,7.58110521]
[1771825485613,0.55476398,1865.5,1865.0,7.58610932]
[1771825486216,0.55476398,1865.5,1865.0,0.00500411]
[1771825486416,0.55476398,1865.5,1865.0,7.02300411]
[1771825486612,0.55476398,1865.5,1865.0,7.58610932]
[1771825489820,0.55476398,1865.5,1865.1,0.55115338]
[1771825494221,0.55476398,1865.5,1865.1,7.56915338]
[1771825494619,0.55476398,1865.5,1865.2,0.55115338]
[1771825497119,0.26809,1865.6,1865.2,0.55115338]
[1771825497326,0.59667295,1866.4,1865.7,0.55115338]
[1771825497617,0.26795,1866.6,1865.5,0.55115338]
[1771825497618,0.59667295,1866.2,1865.5,0.55115338]
[1771825497818,0.59667295,1866.1,1865.6,7.57015338]
[1771825498020,0.59667295,1866.0,1865.7,7.019]
[1771825498322,0.60139478,1866.0,1865.7,7.019]
[1771825498718,4.31112302,1865.9,1865.7,7.019]
[1771825498921,4.90779597,1865.9,1865.7,7.019]
[1771825500323,5.96067295,1865.8,1865.5,0.55115338]
[1771825500526,0.59667295,1865.8,1865.6,7.019]
[1771825501824,4.90779597,1865.8,1865.5,0.55115338]
[1771825502024,0.59667295,1865.9,1865.6,0.55115338]
[1771825502225,1.05287698,1865.8,1865.6,0.55115338]
[1771825502425,0.59667295,1865.7,1865.5,7.019]
[1771825502623,0.59667295,1865.7,1865.5,7.57015338]
[1771825502822,1.05287698,1865.8,1865.5,7.57015338]
[1771825503026,1.64954993,1865.8,1865.5,7.57015338]
[1771825507829,5.96067295,1865.8,1865.5,0.55115338]
[1771825508024,5.96067295,1865.8,1865.5,7.57015338]
[1771825509424,5.364,1865.8,1865.5,7.019]
[1771825509630,5.96067295,1865.8,1865.5,7.57015338]
[1771825509930,5.364,1865.8,1865.6,0.55115338]
[1771825510126,4.31112302,1865.7,1865.6,0.55115338]
[1771825510931,0.59667295,1865.6,1865.3,7.019]
[1771825511231,0.59667295,1865.5,1865.3,7.019]
[1771825511622,0.59667295,1865.5,1865.2,0.55115338]
[1771825511827,0.59667295,1865.3,1865.0,0.55615749]
[1771825512128,0.59667295,1865.3,1865.1,7.019]
[1771825512430,1.05287698,1865.7,1865.2,0.55115338]
[1771825512629,1.73245592,1865.6,1865.2,0.55115338]
[1771825512826,1.05287698,1865.6,1865.2,0.55115338]
[1771825513022,4.31112302,1865.5,1865.2,0.55115338]
[1771825513429,1.64954993,1865.6,1865.2,0.55115338]
[1771825513630,5.364,1865.5,1865.2,0.55115338]
[1771825513833,1.05287698,1865.5,1865.2,0.55115338]
[1771825514028,5.364,1865.5,1865.2,0.55115338]
[1771825514625,5.364,1865.5,1865.4,0.55115338]
[1771825514830,0.02687698,1865.5,1865.4,0.55115338]
[1771825515031,4.338,1865.5,1865.4,0.55115338]
[1771825516731,0.86473295,1865.8,1865.4,0.55115338]
[1771825516936,0.86473295,1865.8,1865.5,7.019]
[1771825517136,0.26806,1865.8,1865.6,0.55115338]
[1771825517535,0.56374674,1865.7,1865.1,0.59635925]
[1771825517838,0.83183674,1865.6,1865.3,0.59635925]
[1771825519039,0.56374674,1865.5,1865.2,7.61535925]
[1771825519633,0.56374674,1865.5,1865.2,7.019]
[1771825521338,0.56374674,1865.5,1865.0,0.60136336]
[1771825522236,0.56374674,1865.7,1865.2,0.59635925]
[1771825522433,0.56374674,1865.7,1865.4,0.59635925]
[1771825522933,0.56374674,1865.7,1865.3,7.61535925]
[1771825523336,0.56374674,1865.7,1865.1,0.23951644]
[1771825523535,0.56374674,1865.7,1865.3,6.67048223]
[1771825523839,0.56374674,1865.5,1865.2,7.019]
[1771825529544,0.56374674,1865.8,1865.3,0.25154949]
[1771825529842,1.2438706,1865.7,1865.3,0.25154949]
[1771825530039,0.68012386,1865.6,1865.3,0.25154949]
[1771825530238,0.56374674,1865.7,1865.3,0.25154949]
[1771825530943,0.56374674,1865.7,1865.4,7.27660448]
[1771825531943,0.56374674,1865.8,1865.5,0.25760448]
[1771825532641,0.83178674,1865.9,1865.5,0.25760448]
[1771825532833,0.68032498,1865.8,1865.5,0.25760448]
[1771825533034,0.56374674,1865.8,1865.5,0.25760448]
[1771825534339,0.68046845,1865.7,1865.5,0.25760448]
[1771825534546,0.56374674,1865.8,1865.5,0.25760448]
[1771825534744,0.68049208,1865.7,1865.5,0.25760448]
[1771825534945,0.56374674,1865.8,1865.5,0.25760448]
[1771825535145,0.68049222,1865.7,1865.5,0.25760448]
[1771825535346,0.56374674,1865.8,1865.5,0.25760448]
[1771825535545,0.68058807,1865.7,1865.5,0.25760448]
[1771825535744,0.83178674,1865.9,1865.5,0.25760448]
[1771825536046,0.68059089,1865.8,1865.7,0.25915741]
[1771825536645,0.68059089,1865.8,1865.6,7.27815741]
[1771825536847,0.83178674,1865.9,1865.6,7.27815741]
[1771825537046,0.68067182,1865.8,1865.6,7.27815741]
[1771825537249,0.83178674,1865.9,1865.6,7.27815741]
[1771825537450,0.68075724,1865.8,1865.6,7.27815741]
[1771825537647,0.56846857,1866.0,1865.7,0.25468469]
[1771825537849,0.56374674,1866.2,1865.8,7.019]
[1771825538752,0.60983121,1866.0,1865.7,7.019]
[1771825538951,0.60983121,1866.0,1865.7,6.50703168]
[1771825539852,0.60983121,1866.0,1865.6,7.019]
[1771825542253,0.6155919,1866.2,1865.6,7.019]
[1771825542454,8.62361665,1866.1,1865.6,7.019]
[1771825542754,0.61150659,1866.1,1865.6,7.019]
[1771825549858,0.6752858,1866.0,1865.6,7.019]
[1771825550058,0.61150659,1866.1,1865.6,7.019]
[1771825550259,0.67528969,1866.0,1865.6,7.019]
[1771825550460,0.61150659,1866.1,1865.6,7.019]
[1771825550759,0.67527902,1866.0,1865.6,7.019]
[1771825551061,0.61150659,1866.1,1865.6,7.019]
[1771825551260,0.67528423,1866.0,1865.6,7.019]
[1771825551559,0.61150659,1866.1,1865.6,7.019]
[1771825551761,0.67528822,1866.0,1865.6,7.019]
[1771825551958,0.61150659,1866.1,1865.6,7.019]
[1771825552157,0.67529297,1866.0,1865.6,7.019]
[1771825552359,0.61150659,1866.1,1865.6,7.019]
[1771825552559,0.6752938,1866.0,1865.6,7.019]
[1771825552762,0.61150659,1866.1,1865.6,7.019]
[1771825552962,0.67529466,1866.0,1865.6,7.019]
[1771825553261,0.61150659,1866.1,1865.6,7.019]
[1771825553464,0.67530978,1866.0,1865.6,7.019]
[1771825553664,0.61150659,1866.1,1865.6,7.019]
[1771825553863,0.67531322,1866.0,1865.7,7.019]
[1771825554060,0.61150659,1866.1,1865.8,7.019]
[1771825554259,0.67530976,1866.0,1865.8,7.019]
[1771825554460,0.61150659,1866.1,1865.8,7.019]
[1771825554661,0.67535888,1866.0,1865.8,7.019]
[1771825554864,0.61150659,1866.1,1865.8,7.019]
[1771825555165,0.67535888,1866.0,1865.8,7.019]
[1771825555360,0.61150659,1866.1,1865.8,7.019]
[1771825555566,1.2907348,1866.0,1865.8,7.019]
[1771825555761,0.61531587,1866.0,1865.8,7.019]
[1771825558566,0.61531587,1866.0,1865.3,1.83874557]
[1771825558770,0.61531587,1866.0,1865.4,7.019]
[1771825558961,0.61531587,1866.0,1865.5,7.019]
[1771825559266,0.67585417,1865.9,1865.5,7.019]
[1771825559466,0.61531587,1866.0,1865.5,7.019]
[1771825559668,0.6758672,1865.9,1865.5,7.019]
[1771825559963,0.61531587,1866.0,1865.5,7.019]
[1771825560167,0.67586722,1865.9,1865.5,7.019]
[1771825560467,0.61531587,1866.0,1865.5,7.019]
[1771825560667,0.67599676,1865.9,1865.5,7.019]
[1771825560868,0.61531587,1866.0,1865.5,7.019]
[1771825561069,0.67599676,1865.9,1865.5,7.019]
[1771825561269,0.61531587,1866.0,1865.5,7.019]
[1771825561469,0.67614635,1865.9,1865.5,7.019]
[1771825561664,0.61531587,1866.0,1865.5,7.019]
[1771825561863,0.67614985,1865.9,1865.5,7.019]
[1771825562059,0.61531587,1866.0,1865.5,7.019]
[1771825562268,0.67614812,1865.9,1865.5,7.019]
[1771825562467,0.61531587,1866.0,1865.5,7.019]
[1771825562669,0.67622007,1865.9,1865.5,7.019]
[1771825562868,0.61531587,1866.0,1865.5,7.019]
[1771825563070,0.67622021,1865.9,1865.5,7.019]
[1771825563367,0.61531587,1866.0,1865.5,7.019]
[1771825563569,0.67630841,1865.9,1865.5,7.019]
[1771825563870,0.61531587,1866.0,1865.3,1.83874557]
[1771825564065,0.67630841,1865.9,1865.4,7.019]
[1771825564270,0.61531587,1866.0,1865.4,7.019]
[1771825564468,0.67631774,1865.9,1865.4,7.019]
[1771825564668,0.61531587,1866.0,1865.4,7.019]
[1771825564867,0.67641748,1865.9,1865.4,7.019]
[1771825565067,0.61531587,1866.0,1865.4,7.019]
[1771825565268,0.67641748,1865.9,1865.4,7.019]
[1771825565472,0.61531587,1866.0,1865.4,7.019]
[1771825565673,0.67655597,1865.9,1865.4,7.019]
[1771825565969,0.61531587,1866.0,1865.4,7.019]
[1771825566172,0.6765573,1865.9,1865.4,7.019]
[1771825566470,0.61531587,1866.0,1865.4,7.019]
[1771825566661,0.00408531,1866.2,1865.5,1.83874557]
[1771825566867,0.26799,1866.3,1865.7,1.83874557]
[1771825567066,0.26799,1866.3,1865.8,7.019]
[1771825567972,0.00646936,1866.3,1865.8,7.019]
[1771825574675,0.62555714,1866.9,1865.9,1.83874557]
[1771825574876,0.62557346,1866.3,1865.3,1.83874557]
[1771825575180,1.83874557,1866.2,1865.4,7.02]
[1771825575370,0.62557346,1866.3,1865.4,7.02]
[1771825575569,2.46431903,1866.4,1865.4,7.02]
[1771825575778,0.62955436,1866.4,1865.5,1.83874557]
[1771825575974,0.62955436,1866.4,1865.6,7.02]
[1771825576177,6.85842,1866.9,1866.1,6.86122]
[1771825576178,2.10664557,1866.9,1866.1,6.86122]
[1771825576381,0.62557346,1867.4,1866.5,1.83874557]
[1771825576576,2.10664557,1867.3,1866.7,1.83874557]
[1771825576777,2.73221903,1867.5,1866.7,1.83874557]
[1771825577178,1.83874557,1867.4,1866.7,0.00404546]
[1771825577379,0.62353256,1867.3,1866.7,0.00404546]
[1771825578779,2.73017167,1867.2,1866.7,0.00404546]
[1771825578980,0.6235261,1867.2,1866.7,0.00404546]
[1771825580184,2.10664557,1867.1,1866.7,0.00404546]
[1771825580385,0.6235261,1867.2,1866.7,0.00404546]
[1771825580987,0.61922432,1867.0,1866.3,1.83874557]
[1771825581884,0.61922432,1867.0,1866.3,1.8453886]
[1771825582884,0.61844366,1866.8,1866.3,0.00664303]
[1771825584589,2.72508923,1866.9,1866.3,0.00664303]
[1771825584885,2.10664557,1866.8,1866.3,0.00664303]
[1771825585392,0.61844366,1866.9,1866.3,0.00664303]
[1771825585686,2.10664557,1866.8,1866.3,0.00664303]
[1771825585986,2.72534327,1866.8,1866.3,0.00664303]
[1771825586588,0.6186977,1866.8,1866.3,0.00664303]
[1771825589289,0.61878895,1867.2,1866.3,1.8453886]
[1771825590090,0.61878895,1867.0,1866.3,1.8453886]
[1771825590291,0.61878895,1867.0,1866.3,0.00664303]
[1771825590789,0.61878895,1867.0,1866.3,1.8453886]
[1771825590989,0.61878895,1867.0,1866.3,0.00664303]
[1771825595187,2.71795546,1866.9,1866.3,0.00664303]
[1771825595387,0.61130989,1866.9,1866.3,1.8453886]
[1771825596796,0.61130989,1866.9,1866.3,0.00664303]
[1771825600197,2.71802493,1866.8,1866.3,0.00664303]
[1771825600394,0.61137936,1866.8,1866.3,0.00664303]
[1771825601803,0.61144958,1866.6,1866.3,0.00664303]
[1771825602300,0.61144958,1866.6,1865.6,0.26807]
[1771825602501,2.71809515,1866.5,1865.6,0.26807]
[1771825602800,0.61144958,1866.5,1865.6,0.26807]
[1771825603295,0.61144958,1866.5,1865.6,0.27281845]
[1771825607606,2.1045015,1867.1,1865.6,0.27281845]
[1771825607607,2.719674,1866.4,1865.6,0.27281845]
[1771825607904,0.61302843,1866.4,1865.6,0.27281845]
[1771825608305,0.61302843,1866.4,1865.7,1.8366315]
[1771825609306,0.61302843,1866.4,1865.8,0.26806]
[1771825609501,0.61121544,1867.0,1866.0,0.26803]
[1771825609696,0.61121544,1866.8,1866.0,0.26803]
[1771825614602,2.10664557,1866.7,1866.0,0.26803]
[1771825614807,0.61153886,1866.6,1866.0,0.26803]
[1771825619709,0.61297393,1866.4,1866.0,0.26803]
[1771825621905,0.26787,1867.1,1866.0,0.26803]